[Event "Titled Tuesday Blitz May 16 Late 2023"]
[White "Qiao, Cindy"]
[Black "ritanovikova"]
[WhiteFideId "2620243"]
[WhiteElo "1777"]
[BlackElo "2125"]
[Result "0-1"]
[Round "02"]
[TimeControl "180+2"]
[Date "2023.05.16"]
[WhiteClock "0:00:09"]
[BlackClock "0:00:08"]

1. d4 {[%clk 0:03:00]}  d5 {[%clk 0:03:00]} 2. Bf4 {[%clk 0:03:00]}  e6 {[%clk 0:02:45]} 3. e3 {[%clk 0:03:00]}  Bd6 {[%clk 0:02:44]} 4. Bxd6 {[%clk 0:03:00]}  Qxd6 {[%clk 0:02:44]} 5. Qg4 {[%clk 0:03:01]}  g6 {[%clk 0:02:38]} 6. c3 {[%clk 0:03:01]}  Nf6 {[%clk 0:02:37]} 7. Qd1 {[%clk 0:03:00]}  c5 {[%clk 0:02:25]} 8. Nf3 {[%clk 0:02:59]}  Nc6 {[%clk 0:02:25]} 9. Nbd2 {[%clk 0:02:59]}  O-O {[%clk 0:02:24]} 10. Bd3 {[%clk 0:02:58]}  e5 {[%clk 0:02:23]} 11. dxe5 {[%clk 0:02:58]}  Nxe5 {[%clk 0:02:24]} 12. Nxe5 {[%clk 0:02:58]}  Qxe5 {[%clk 0:02:24]} 13. Nf3 {[%clk 0:02:59]}  Qh5 {[%clk 0:02:25]} 14. Be2 {[%clk 0:02:54]}  Bg4 {[%clk 0:02:10]} 15. O-O {[%clk 0:02:47]}  Rad8 {[%clk 0:02:08]} 16. Qa4 {[%clk 0:02:45]}  a6 {[%clk 0:02:03]} 17. Rad1 {[%clk 0:02:42]}  Qf5 {[%clk 0:01:46]} 18. h3 {[%clk 0:02:22]}  Bxf3 {[%clk 0:01:42]} 19. Bxf3 {[%clk 0:02:22]}  Qc8 {[%clk 0:01:40]} 20. Qf4 {[%clk 0:02:20]}  Kg7 {[%clk 0:01:39]} 21. Rd2 {[%clk 0:02:18]}  b5 {[%clk 0:01:37]} 22. Rfd1 {[%clk 0:02:18]}  Qe6 {[%clk 0:01:33]} 23. a3 {[%clk 0:02:00]}  Rd7 {[%clk 0:01:17]} 24. e4 {[%clk 0:01:59]}  dxe4 {[%clk 0:01:11]} 25. Rxd7 {[%clk 0:01:55]}  Nxd7 {[%clk 0:01:11]} 26. Bxe4 {[%clk 0:01:53]}  Nf6 {[%clk 0:01:08]} 27. Bf3 {[%clk 0:01:50]}  a5 {[%clk 0:00:40]} 28. Kh2 {[%clk 0:01:38]}  Qe7 {[%clk 0:00:35]} 29. Qd2 {[%clk 0:01:14]}  Qc7+ {[%clk 0:00:29]} 30. Kg1 {[%clk 0:01:13]}  Rb8 {[%clk 0:00:26]} 31. Re1 {[%clk 0:01:06]}  h6 {[%clk 0:00:21]} 32. Re3 {[%clk 0:01:00]}  Rd8 {[%clk 0:00:21]} 33. Qe2 {[%clk 0:00:59]}  Rd7 {[%clk 0:00:20]} 34. Qxb5 {[%clk 0:00:56]}  Nd5 {[%clk 0:00:13]} 35. Bxd5 {[%clk 0:00:51]}  Rxd5 {[%clk 0:00:13]} 36. Qe2 {[%clk 0:00:52]}  Qd6 {[%clk 0:00:11]} 37. g3 {[%clk 0:00:51]}  h5 {[%clk 0:00:11]} 38. Kg2 {[%clk 0:00:51]}  h4 {[%clk 0:00:11]} 39. Qg4 {[%clk 0:00:40]}  hxg3 {[%clk 0:00:11]} 40. fxg3 {[%clk 0:00:34]}  Rd2+ {[%clk 0:00:10]} 41. Re2 {[%clk 0:00:35]}  Qc6+ {[%clk 0:00:10]} 42. Kf2 {[%clk 0:00:35]}  Rd6 {[%clk 0:00:08]} 43. Qe4 {[%clk 0:00:31]}  Rf6+ {[%clk 0:00:08]} 44. Kg2 {[%clk 0:00:31]}  Qb6 {[%clk 0:00:08]} 45. Qe5 {[%clk 0:00:31]}  Kh7 {[%clk 0:00:08]} 46. h4 {[%clk 0:00:28]}  Re6 {[%clk 0:00:07]} 47. Qxe6 {[%clk 0:00:14]}  fxe6 {[%clk 0:00:08]} 48. Rd2 {[%clk 0:00:13]}  Qc6+ {[%clk 0:00:08]} 49. Kh2 {[%clk 0:00:12]}  c4 {[%clk 0:00:08]} 50. Re2 {[%clk 0:00:12]}  Kg7 {[%clk 0:00:08]} 51. Rf2 {[%clk 0:00:11]}  e5 {[%clk 0:00:08]} 52. Kh3 {[%clk 0:00:11]}  e4 {[%clk 0:00:08]} 53. Re2 {[%clk 0:00:11]}  Qd5 {[%clk 0:00:08]} 54. Rf2 {[%clk 0:00:10]}  e3 {[%clk 0:00:08]} 55. Re2 {[%clk 0:00:09]}  Qd3 {[%clk 0:00:08]} 0-1


[Site "https://www.chess.com"]

[Event "Titled Tuesday Blitz May 16 Late 2023"]
[White "Chessadiction1990"]
[Black "Kaplan, Avi Harrison"]
[BlackFideId "30934559"]
[WhiteElo "2122"]
[BlackElo "1983"]
[Result "0-1"]
[Round "02"]
[TimeControl "180+2"]
[Date "2023.05.16"]
[WhiteClock "0:00:00"]
[BlackClock "0:00:16"]

1. d4 {[%clk 0:02:58]}  Nf6 {[%clk 0:02:59]} 2. c4 {[%clk 0:02:57]}  g6 {[%clk 0:03:00]} 3. h4 {[%clk 0:02:56]}  Bg7 {[%clk 0:03:00]} 4. Nc3 {[%clk 0:02:50]}  O-O {[%clk 0:03:00]} 5. e4 {[%clk 0:02:34]}  d6 {[%clk 0:03:00]} 6. Be2 {[%clk 0:02:33]}  c5 {[%clk 0:02:55]} 7. d5 {[%clk 0:02:33]}  e6 {[%clk 0:02:56]} 8. Nf3 {[%clk 0:02:31]}  exd5 {[%clk 0:02:56]} 9. exd5 {[%clk 0:02:31]}  Re8 {[%clk 0:02:54]} 10. Kf1 {[%clk 0:02:30]}  Bg4 {[%clk 0:02:42]} 11. Bf4 {[%clk 0:02:09]}  Nbd7 {[%clk 0:02:28]} 12. Bxd6 {[%clk 0:02:03]}  Qb6 {[%clk 0:02:28]} 13. Nb5 {[%clk 0:01:47]}  Rac8 {[%clk 0:02:10]} 14. a4 {[%clk 0:01:24]}  Ne4 {[%clk 0:02:00]} 15. a5 {[%clk 0:01:02]}  Qd8 {[%clk 0:01:54]} 16. Bf4 {[%clk 0:01:01]}  a6 {[%clk 0:01:04]} 17. Nd6 {[%clk 0:01:00]}  Nxd6 {[%clk 0:01:02]} 18. Bxd6 {[%clk 0:01:01]}  Nf6 {[%clk 0:00:55]} 19. Bf4 {[%clk 0:00:53]}  Ne4 {[%clk 0:00:55]} 20. Qc2 {[%clk 0:00:33]}  Qf6 {[%clk 0:00:45]} 21. Bg5 {[%clk 0:00:31]}  Qxb2 {[%clk 0:00:43]} 22. Qxb2 {[%clk 0:00:30]}  Bxb2 {[%clk 0:00:44]} 23. Rb1 {[%clk 0:00:24]}  Bf6 {[%clk 0:00:28]} 24. Bxf6 {[%clk 0:00:23]}  Bxf3 {[%clk 0:00:29]} 25. Bxf3 {[%clk 0:00:15]}  Nd2+ {[%clk 0:00:29]} 26. Kg1 {[%clk 0:00:13]}  Nxb1 {[%clk 0:00:30]} 27. Kh2 {[%clk 0:00:11]}  Nd2 {[%clk 0:00:27]} 28. Bg4 {[%clk 0:00:11]}  Rb8 {[%clk 0:00:16]} 29. d6 {[%clk 0:00:11]}  Nxc4 {[%clk 0:00:16]} 30. d7 {[%clk 0:00:11]}  Red8 {[%clk 0:00:16]} 31. Bxd8 {[%clk 0:00:11]}  Rxd8 {[%clk 0:00:17]} 32. Rc1 {[%clk 0:00:09]}  Nxa5 {[%clk 0:00:17]} 33. Rxc5 {[%clk 0:00:09]}  Nc6 {[%clk 0:00:18]} 34. h5 {[%clk 0:00:08]}  Kf8 {[%clk 0:00:18]} 35. hxg6 {[%clk 0:00:05]}  hxg6 {[%clk 0:00:19]} 36. Kg3 {[%clk 0:00:05]}  f5 {[%clk 0:00:19]} 37. Bf3 {[%clk 0:00:04]}  Rxd7 {[%clk 0:00:15]} 38. Bxc6 {[%clk 0:00:00]}  Rc7 {[%clk 0:00:16]} 0-1


[Site "https://www.chess.com"]

[Event "Titled Tuesday Blitz May 16 Late 2023"]
[White "Lozano Ramirez, Nestor Favian"]
[Black "Torres Dominguez, David"]
[WhiteFideId "4412672"]
[BlackFideId "2220857"]
[WhiteElo "2254"]
[BlackElo "1999"]
[Result "1-0"]
[Round "02"]
[TimeControl "180+2"]
[Date "2023.05.16"]
[WhiteClock "0:01:24"]
[BlackClock "0:00:30"]

1. c4 {[%clk 0:03:00]}  e5 {[%clk 0:02:50]} 2. g3 {[%clk 0:03:00]}  Nc6 {[%clk 0:02:50]} 3. Nc3 {[%clk 0:02:59]}  f5 {[%clk 0:02:51]} 4. Nf3 {[%clk 0:02:59]}  Nf6 {[%clk 0:02:51]} 5. d4 {[%clk 0:02:59]}  e4 {[%clk 0:02:50]} 6. Nh4 {[%clk 0:02:59]}  g6 {[%clk 0:02:48]} 7. Bg5 {[%clk 0:02:59]}  Bg7 {[%clk 0:02:48]} 8. e3 {[%clk 0:02:53]}  O-O {[%clk 0:02:48]} 9. Nd5 {[%clk 0:02:47]}  Ne7 {[%clk 0:02:44]} 10. Nxf6+ {[%clk 0:02:46]}  Bxf6 {[%clk 0:02:43]} 11. Bxf6 {[%clk 0:02:46]}  Rxf6 {[%clk 0:02:42]} 12. Ng2 {[%clk 0:02:47]}  d6 {[%clk 0:02:41]} 13. Nf4 {[%clk 0:02:46]}  c6 {[%clk 0:02:38]} 14. h4 {[%clk 0:02:43]}  Qe8 {[%clk 0:02:34]} 15. Qb3 {[%clk 0:02:42]}  c5 {[%clk 0:02:13]} 16. O-O-O {[%clk 0:02:36]}  Rb8 {[%clk 0:02:07]} 17. Be2 {[%clk 0:02:31]}  a6 {[%clk 0:02:06]} 18. dxc5 {[%clk 0:02:24]}  dxc5 {[%clk 0:02:05]} 19. Rd2 {[%clk 0:02:06]}  Nc6 {[%clk 0:01:55]} 20. Rd5 {[%clk 0:02:01]}  b6 {[%clk 0:01:52]} 21. Rhd1 {[%clk 0:01:59]}  Be6 {[%clk 0:01:45]} 22. Rd6 {[%clk 0:01:58]}  Na5 {[%clk 0:01:27]} 23. Qc3 {[%clk 0:01:57]}  Qe7 {[%clk 0:01:19]} 24. Nd5 {[%clk 0:01:45]}  Bxd5 {[%clk 0:01:19]} 25. Rxf6 {[%clk 0:01:41]}  Bf7 {[%clk 0:01:17]} 26. Rfd6 {[%clk 0:01:34]}  Nb7 {[%clk 0:00:58]} 27. Rd7 {[%clk 0:01:32]}  Qe6 {[%clk 0:00:58]} 28. h5 {[%clk 0:01:31]}  gxh5 {[%clk 0:00:30]} 29. Bxh5 {[%clk 0:01:24]} 1-0


[Site "https://www.chess.com"]

[Event "Titled Tuesday Blitz May 16 Late 2023"]
[White "Martinez, Ayelen"]
[Black "reevecanada"]
[WhiteFideId "118702"]
[WhiteElo "2125"]
[BlackElo "2411"]
[Result "0-1"]
[Round "02"]
[TimeControl "180+2"]
[Date "2023.05.16"]
[WhiteClock "0:00:04"]
[BlackClock "0:01:03"]

1. e4 {[%clk 0:03:00]}  c5 {[%clk 0:02:59]} 2. Nf3 {[%clk 0:02:44]}  d6 {[%clk 0:02:58]} 3. d4 {[%clk 0:02:40]}  cxd4 {[%clk 0:02:54]} 4. Nxd4 {[%clk 0:02:41]}  Nf6 {[%clk 0:02:54]} 5. Nc3 {[%clk 0:02:39]}  a6 {[%clk 0:02:52]} 6. Bg5 {[%clk 0:02:38]}  e6 {[%clk 0:02:51]} 7. f4 {[%clk 0:02:34]}  Be7 {[%clk 0:02:50]} 8. Qf3 {[%clk 0:02:25]}  h6 {[%clk 0:02:44]} 9. Bh4 {[%clk 0:02:13]}  Qc7 {[%clk 0:02:42]} 10. O-O-O {[%clk 0:02:12]}  Nbd7 {[%clk 0:02:40]} 11. Bd3 {[%clk 0:02:09]}  b5 {[%clk 0:02:29]} 12. Bxb5 {[%clk 0:01:53]}  axb5 {[%clk 0:02:26]} 13. Ndxb5 {[%clk 0:01:54]}  Qc6 {[%clk 0:02:25]} 14. e5 {[%clk 0:01:43]}  d5 {[%clk 0:02:12]} 15. exf6 {[%clk 0:01:40]}  Nxf6 {[%clk 0:02:13]} 16. f5 {[%clk 0:01:32]}  O-O {[%clk 0:02:04]} 17. fxe6 {[%clk 0:01:24]}  fxe6 {[%clk 0:02:05]} 18. Nd4 {[%clk 0:01:24]}  Qb6 {[%clk 0:02:03]} 19. Qg3 {[%clk 0:01:18]}  Rb8 {[%clk 0:01:45]} 20. Nb3 {[%clk 0:01:17]}  Bd6 {[%clk 0:01:33]} 21. Qg6 {[%clk 0:01:08]}  Bd7 {[%clk 0:01:29]} 22. Rhf1 {[%clk 0:01:06]}  Be8 {[%clk 0:01:26]} 23. Qd3 {[%clk 0:01:00]}  Bh5 {[%clk 0:01:24]} 24. Rde1 {[%clk 0:00:55]}  Ng4 {[%clk 0:01:20]} 25. h3 {[%clk 0:00:37]}  Ne5 {[%clk 0:01:16]} 26. Qd2 {[%clk 0:00:23]}  Nc4 {[%clk 0:01:14]} 27. Qd3 {[%clk 0:00:22]}  Bf4+ {[%clk 0:01:13]} 28. Kb1 {[%clk 0:00:21]}  Nd2+ {[%clk 0:01:13]} 29. Ka1 {[%clk 0:00:18]}  Nxf1 {[%clk 0:01:13]} 30. Rxf1 {[%clk 0:00:18]}  Be5 {[%clk 0:01:10]} 31. Re1 {[%clk 0:00:15]}  Bxc3 {[%clk 0:01:08]} 32. Qxc3 {[%clk 0:00:16]}  Rfc8 {[%clk 0:01:06]} 33. Qd2 {[%clk 0:00:13]}  Bg6 {[%clk 0:01:04]} 34. c3 {[%clk 0:00:12]}  Qxb3 {[%clk 0:01:04]} 35. Rxe6 {[%clk 0:00:09]}  Ra8 {[%clk 0:01:03]} 36. a3 {[%clk 0:00:08]}  Rxa3+ {[%clk 0:01:03]} 37. bxa3 {[%clk 0:00:04]}  Qxa3+ {[%clk 0:01:03]} 0-1


[Site "https://www.chess.com"]

[Event "Titled Tuesday Blitz May 16 Late 2023"]
[White "Malicka, Maria"]
[Black "Manu_ChessExcelsior"]
[WhiteFideId "1197576"]
[WhiteElo "2227"]
[BlackElo "2059"]
[Result "1-0"]
[Round "02"]
[TimeControl "180+2"]
[Date "2023.05.16"]
[WhiteClock "0:01:50"]
[BlackClock "0:00:43"]

1. e4 {[%clk 0:03:00]}  e5 {[%clk 0:02:58]} 2. Nf3 {[%clk 0:03:00]}  Nc6 {[%clk 0:02:59]} 3. Bb5 {[%clk 0:03:00]}  a6 {[%clk 0:02:59]} 4. Ba4 {[%clk 0:03:00]}  Nf6 {[%clk 0:02:59]} 5. c3 {[%clk 0:02:59]}  Be7 {[%clk 0:02:43]} 6. O-O {[%clk 0:02:56]}  b5 {[%clk 0:02:41]} 7. Bc2 {[%clk 0:02:55]}  O-O {[%clk 0:02:37]} 8. d4 {[%clk 0:02:54]}  d6 {[%clk 0:02:35]} 9. Nbd2 {[%clk 0:02:54]}  h6 {[%clk 0:02:29]} 10. Re1 {[%clk 0:02:53]}  Re8 {[%clk 0:02:29]} 11. Nf1 {[%clk 0:02:51]}  Bf8 {[%clk 0:02:30]} 12. Ng3 {[%clk 0:02:50]}  Nb8 {[%clk 0:02:30]} 13. dxe5 {[%clk 0:02:48]}  dxe5 {[%clk 0:02:27]} 14. Qxd8 {[%clk 0:02:46]}  Rxd8 {[%clk 0:02:28]} 15. Nxe5 {[%clk 0:02:46]}  Bb7 {[%clk 0:02:28]} 16. f3 {[%clk 0:02:31]}  Bd6 {[%clk 0:02:20]} 17. Nd3 {[%clk 0:02:30]}  Nbd7 {[%clk 0:02:08]} 18. e5 {[%clk 0:02:22]}  Nc5 {[%clk 0:01:31]} 19. exd6 {[%clk 0:02:21]}  Nxd3 {[%clk 0:01:25]} 20. Bxd3 {[%clk 0:02:21]}  Rxd6 {[%clk 0:01:25]} 21. Bc2 {[%clk 0:02:16]}  Rad8 {[%clk 0:01:25]} 22. Bf4 {[%clk 0:02:15]}  R6d7 {[%clk 0:01:23]} 23. Nf5 {[%clk 0:02:12]}  Nd5 {[%clk 0:01:19]} 24. Be5 {[%clk 0:02:09]}  f6 {[%clk 0:01:18]} 25. Bd4 {[%clk 0:02:09]}  Kf7 {[%clk 0:01:11]} 26. Bb3 {[%clk 0:02:08]}  Kg6 {[%clk 0:01:11]} 27. Ne3 {[%clk 0:02:07]}  Nf4 {[%clk 0:01:08]} 28. g3 {[%clk 0:02:03]}  Nh3+ {[%clk 0:01:01]} 29. Kg2 {[%clk 0:02:00]}  Ng5 {[%clk 0:01:01]} 30. Bc2+ {[%clk 0:02:00]}  Kf7 {[%clk 0:01:01]} 31. Be4 {[%clk 0:01:52]}  Nxe4 {[%clk 0:01:01]} 32. fxe4 {[%clk 0:01:53]}  Bxe4+ {[%clk 0:01:01]} 33. Kf2 {[%clk 0:01:53]}  c5 {[%clk 0:01:02]} 34. Bxc5 {[%clk 0:01:53]}  Rd2+ {[%clk 0:01:02]} 35. Re2 {[%clk 0:01:53]}  R2d7 {[%clk 0:00:50]} 36. Bd4 {[%clk 0:01:52]}  b4 {[%clk 0:00:48]} 37. Rae1 {[%clk 0:01:49]}  Bd3 {[%clk 0:00:48]} 38. Rd2 {[%clk 0:01:49]}  Bc4 {[%clk 0:00:48]} 39. Nxc4 {[%clk 0:01:49]}  bxc3 {[%clk 0:00:43]} 40. bxc3 {[%clk 0:01:50]} 1-0


[Site "https://www.chess.com"]

[Event "Titled Tuesday Blitz May 16 Late 2023"]
[White "Mazurkiewicz, Michal"]
[Black "Joubert, Dantelle"]
[WhiteFideId "1124943"]
[BlackFideId "14310813"]
[WhiteElo "2054"]
[BlackElo "1507"]
[Result "1-0"]
[Round "02"]
[TimeControl "180+2"]
[Date "2023.05.16"]
[WhiteClock "0:01:00"]
[BlackClock "0:00:37"]

1. e4 {[%clk 0:02:17]}  c5 {[%clk 0:02:57]} 2. Nf3 {[%clk 0:02:17]}  d6 {[%clk 0:02:57]} 3. g3 {[%clk 0:02:17]}  Nc6 {[%clk 0:02:53]} 4. Bg2 {[%clk 0:02:17]}  Nf6 {[%clk 0:02:50]} 5. d3 {[%clk 0:02:17]}  g6 {[%clk 0:02:50]} 6. O-O {[%clk 0:02:18]}  Bg7 {[%clk 0:02:50]} 7. Re1 {[%clk 0:02:18]}  O-O {[%clk 0:02:48]} 8. e5 {[%clk 0:02:18]}  Nd5 {[%clk 0:02:41]} 9. exd6 {[%clk 0:02:16]}  exd6 {[%clk 0:02:42]} 10. Nbd2 {[%clk 0:02:03]}  Bg4 {[%clk 0:02:38]} 11. h3 {[%clk 0:02:02]}  Be6 {[%clk 0:02:29]} 12. Nc4 {[%clk 0:01:54]}  h6 {[%clk 0:02:27]} 13. a4 {[%clk 0:01:54]}  Qd7 {[%clk 0:02:10]} 14. c3 {[%clk 0:01:51]}  Bxh3 {[%clk 0:01:57]} 15. Bxh3 {[%clk 0:01:51]}  Qxh3 {[%clk 0:01:56]} 16. Nxd6 {[%clk 0:01:51]}  b6 {[%clk 0:01:48]} 17. Nc4 {[%clk 0:01:47]}  Rad8 {[%clk 0:01:46]} 18. Nfe5 {[%clk 0:01:45]}  Nxe5 {[%clk 0:01:38]} 19. Nxe5 {[%clk 0:01:46]}  Rfe8 {[%clk 0:01:37]} 20. Nc6 {[%clk 0:01:44]}  Rc8 {[%clk 0:01:29]} 21. Nxa7 {[%clk 0:01:28]}  Rcd8 {[%clk 0:01:26]} 22. Bd2 {[%clk 0:01:17]}  Nf6 {[%clk 0:01:16]} 23. Qf3 {[%clk 0:01:11]}  Ng4 {[%clk 0:01:14]} 24. Qg2 {[%clk 0:01:09]}  Qxg2+ {[%clk 0:01:13]} 25. Kxg2 {[%clk 0:01:09]}  Rxe1 {[%clk 0:01:11]} 26. Bxe1 {[%clk 0:01:08]}  Rxd3 {[%clk 0:01:10]} 27. Nc8 {[%clk 0:01:08]}  Be5 {[%clk 0:00:55]} 28. Nxb6 {[%clk 0:01:05]}  Bc7 {[%clk 0:00:54]} 29. a5 {[%clk 0:01:03]}  Rd6 {[%clk 0:00:53]} 30. Nc4 {[%clk 0:01:03]}  Ra6 {[%clk 0:00:52]} 31. b4 {[%clk 0:01:03]}  cxb4 {[%clk 0:00:48]} 32. cxb4 {[%clk 0:01:04]}  Ne5 {[%clk 0:00:46]} 33. Nxe5 {[%clk 0:01:03]}  Bxe5 {[%clk 0:00:46]} 34. Ra2 {[%clk 0:01:02]}  Kg7 {[%clk 0:00:45]} 35. b5 {[%clk 0:01:02]}  Ra8 {[%clk 0:00:43]} 36. a6 {[%clk 0:01:02]}  Bd4 {[%clk 0:00:42]} 37. Bd2 {[%clk 0:01:01]}  Rb8 {[%clk 0:00:37]} 38. Be3 {[%clk 0:01:00]} 1-0


[Site "https://www.chess.com"]

[Event "Titled Tuesday Blitz May 16 Late 2023"]
[White "FlemingA"]
[Black "Arias Igual, Alejandro"]
[BlackFideId "2254905"]
[WhiteElo "2395"]
[BlackElo "2179"]
[Result "0-1"]
[Round "02"]
[TimeControl "180+2"]
[Date "2023.05.16"]
[WhiteClock "0:00:03"]
[BlackClock "0:00:12"]

1. Nc3 {[%clk 0:02:55]}  d5 {[%clk 0:02:57]} 2. d4 {[%clk 0:02:54]}  c5 {[%clk 0:02:53]} 3. e4 {[%clk 0:02:41]}  dxe4 {[%clk 0:02:48]} 4. d5 {[%clk 0:02:40]}  Nf6 {[%clk 0:02:43]} 5. f3 {[%clk 0:02:30]}  a6 {[%clk 0:02:30]} 6. fxe4 {[%clk 0:02:28]}  e6 {[%clk 0:02:30]} 7. Bg5 {[%clk 0:02:20]}  Be7 {[%clk 0:02:26]} 8. Nf3 {[%clk 0:02:06]}  O-O {[%clk 0:02:23]} 9. d6 {[%clk 0:02:06]}  Qxd6 {[%clk 0:02:08]} 10. Qxd6 {[%clk 0:02:05]}  Bxd6 {[%clk 0:02:08]} 11. e5 {[%clk 0:02:05]}  Be7 {[%clk 0:01:59]} 12. exf6 {[%clk 0:01:59]}  gxf6 {[%clk 0:01:59]} 13. Be3 {[%clk 0:01:57]}  Nc6 {[%clk 0:01:56]} 14. O-O-O {[%clk 0:01:56]}  b5 {[%clk 0:01:55]} 15. Ne4 {[%clk 0:01:55]}  c4 {[%clk 0:01:51]} 16. Bc5 {[%clk 0:01:37]}  Bxc5 {[%clk 0:01:46]} 17. Nxc5 {[%clk 0:01:37]}  Nb4 {[%clk 0:01:37]} 18. a3 {[%clk 0:01:26]}  Nd5 {[%clk 0:01:37]} 19. Be2 {[%clk 0:01:23]}  Ra7 {[%clk 0:01:35]} 20. Nd4 {[%clk 0:01:07]}  Rc7 {[%clk 0:01:13]} 21. Ne4 {[%clk 0:01:04]}  Bb7 {[%clk 0:01:13]} 22. Bf3 {[%clk 0:00:57]}  Kg7 {[%clk 0:00:55]} 23. Rhe1 {[%clk 0:00:39]}  h6 {[%clk 0:00:54]} 24. Ng3 {[%clk 0:00:36]}  f5 {[%clk 0:00:46]} 25. Ndxf5+ {[%clk 0:00:34]}  Kf6 {[%clk 0:00:42]} 26. Nxh6 {[%clk 0:00:31]}  Rh8 {[%clk 0:00:39]} 27. Ng4+ {[%clk 0:00:31]}  Kg7 {[%clk 0:00:40]} 28. h3 {[%clk 0:00:26]}  c3 {[%clk 0:00:37]} 29. b3 {[%clk 0:00:26]}  a5 {[%clk 0:00:36]} 30. Ne3 {[%clk 0:00:24]}  Nxe3 {[%clk 0:00:34]} 31. Rxe3 {[%clk 0:00:25]}  b4 {[%clk 0:00:31]} 32. Bxb7 {[%clk 0:00:23]}  Rxb7 {[%clk 0:00:32]} 33. a4 {[%clk 0:00:23]}  Rh4 {[%clk 0:00:30]} 34. Re4 {[%clk 0:00:16]}  Rh8 {[%clk 0:00:26]} 35. Re5 {[%clk 0:00:13]}  Ra7 {[%clk 0:00:23]} 36. Rf1 {[%clk 0:00:12]}  Rh6 {[%clk 0:00:20]} 37. Rg5+ {[%clk 0:00:12]}  Rg6 {[%clk 0:00:18]} 38. Rxg6+ {[%clk 0:00:12]}  Kxg6 {[%clk 0:00:19]} 39. Ne4 {[%clk 0:00:10]}  Rd7 {[%clk 0:00:17]} 40. Rd1 {[%clk 0:00:09]}  Re7 {[%clk 0:00:13]} 41. g4 {[%clk 0:00:09]}  f5 {[%clk 0:00:12]} 42. Nf2 {[%clk 0:00:09]}  fxg4 {[%clk 0:00:10]} 43. Nxg4 {[%clk 0:00:10]}  e5 {[%clk 0:00:11]} 44. Re1 {[%clk 0:00:09]}  e4 {[%clk 0:00:11]} 45. Re2 {[%clk 0:00:07]}  Kg5 {[%clk 0:00:11]} 46. Nf2 {[%clk 0:00:07]}  Kf4 {[%clk 0:00:11]} 47. h4 {[%clk 0:00:04]}  Kf3 {[%clk 0:00:11]} 48. Rxe4 {[%clk 0:00:03]}  Rg7 {[%clk 0:00:10]} 49. Rg4 {[%clk 0:00:02]}  Rxg4 {[%clk 0:00:09]} 50. Nxg4 {[%clk 0:00:02]}  Kxg4 {[%clk 0:00:10]} 51. Kd1 {[%clk 0:00:03]}  Kxh4 {[%clk 0:00:11]} 52. Ke2 {[%clk 0:00:04]}  Kg3 {[%clk 0:00:11]} 53. Kd3 {[%clk 0:00:05]}  Kf2 {[%clk 0:00:12]} 54. Kc4 {[%clk 0:00:05]}  Ke2 {[%clk 0:00:12]} 55. Kb5 {[%clk 0:00:06]}  Kd2 {[%clk 0:00:13]} 56. Kxa5 {[%clk 0:00:06]}  Kxc2 {[%clk 0:00:12]} 57. Kxb4 {[%clk 0:00:07]}  Kb2 {[%clk 0:00:12]} 58. a5 {[%clk 0:00:08]}  c2 {[%clk 0:00:13]} 59. a6 {[%clk 0:00:08]}  c1=Q {[%clk 0:00:14]} 60. Kb5 {[%clk 0:00:03]}  Qc8 {[%clk 0:00:15]} 61. b4 {[%clk 0:00:03]}  Qb8+ {[%clk 0:00:15]} 62. Ka5 {[%clk 0:00:03]}  Kb3 {[%clk 0:00:14]} 63. b5 {[%clk 0:00:04]}  Kc4 {[%clk 0:00:11]} 64. b6 {[%clk 0:00:04]}  Qe5+ {[%clk 0:00:11]} 65. Ka4 {[%clk 0:00:03]}  Qb5+ {[%clk 0:00:11]} 66. Ka3 {[%clk 0:00:03]}  Qb3# {[%clk 0:00:12]} 0-1


[Site "https://www.chess.com"]

[Event "Titled Tuesday Blitz May 16 Late 2023"]
[White "Vargas, Mauricio"]
[Black "Kalajzic, Ivan"]
[WhiteFideId "4404572"]
[BlackFideId "14506378"]
[WhiteElo "1986"]
[BlackElo "2203"]
[Result "0-1"]
[Round "02"]
[TimeControl "180+2"]
[Date "2023.05.16"]
[WhiteClock "0:00:00"]
[BlackClock "0:00:30"]

1. e4 {[%clk 0:02:22]}  g6 {[%clk 0:02:32]} 2. f4 {[%clk 0:02:19]}  Bg7 {[%clk 0:02:32]} 3. Nf3 {[%clk 0:02:18]}  d6 {[%clk 0:02:32]} 4. d4 {[%clk 0:02:16]}  a6 {[%clk 0:02:28]} 5. g3 {[%clk 0:02:13]}  b5 {[%clk 0:02:28]} 6. Bg2 {[%clk 0:02:13]}  Bb7 {[%clk 0:02:28]} 7. Nbd2 {[%clk 0:02:10]}  Nd7 {[%clk 0:02:27]} 8. O-O {[%clk 0:02:08]}  c5 {[%clk 0:02:27]} 9. d5 {[%clk 0:02:05]}  Ngf6 {[%clk 0:02:23]} 10. b3 {[%clk 0:02:04]}  Ng4 {[%clk 0:02:20]} 11. Rb1 {[%clk 0:02:00]}  Ne3 {[%clk 0:02:20]} 12. Qe1 {[%clk 0:01:56]}  Nxf1 {[%clk 0:01:58]} 13. Nxf1 {[%clk 0:01:52]}  O-O {[%clk 0:01:56]} 14. c4 {[%clk 0:01:50]}  e6 {[%clk 0:01:55]} 15. dxe6 {[%clk 0:01:42]}  fxe6 {[%clk 0:01:53]} 16. Bh3 {[%clk 0:01:41]}  Qe7 {[%clk 0:01:52]} 17. Ng5 {[%clk 0:01:37]}  e5 {[%clk 0:01:29]} 18. Be6+ {[%clk 0:01:32]}  Kh8 {[%clk 0:01:28]} 19. f5 {[%clk 0:01:02]}  h6 {[%clk 0:01:05]} 20. Nf3 {[%clk 0:00:36]}  Nf6 {[%clk 0:01:03]} 21. Nh4 {[%clk 0:00:31]}  g5 {[%clk 0:01:00]} 22. Ng6+ {[%clk 0:00:29]}  Kh7 {[%clk 0:01:00]} 23. Nxe7 {[%clk 0:00:27]}  Bxe4 {[%clk 0:00:54]} 24. Nd5 {[%clk 0:00:21]}  Bxb1 {[%clk 0:00:52]} 25. Nxf6+ {[%clk 0:00:19]}  Rxf6 {[%clk 0:00:53]} 26. Bxg5 {[%clk 0:00:18]}  hxg5 {[%clk 0:00:47]} 27. Qxb1 {[%clk 0:00:18]}  bxc4 {[%clk 0:00:45]} 28. bxc4 {[%clk 0:00:18]}  Rff8 {[%clk 0:00:44]} 29. Qd1 {[%clk 0:00:17]}  Rf6 {[%clk 0:00:41]} 30. Qxd6 {[%clk 0:00:15]}  e4 {[%clk 0:00:39]} 31. Qd5 {[%clk 0:00:09]}  Rb8 {[%clk 0:00:36]} 32. Qxe4 {[%clk 0:00:08]}  Rb2 {[%clk 0:00:32]} 33. Qa8 {[%clk 0:00:00]}  Rf8 {[%clk 0:00:30]} 0-1


[Site "https://www.chess.com"]

[Event "Titled Tuesday Blitz May 16 Late 2023"]
[White "Lima, Kleyton Alcantara"]
[Black "Sanchez, Robert"]
[WhiteFideId "22718397"]
[BlackFideId "2034360"]
[WhiteElo "2009"]
[BlackElo "1864"]
[Result "1-0"]
[Round "02"]
[TimeControl "180+2"]
[Date "2023.05.16"]
[WhiteClock "0:01:29"]
[BlackClock "0:01:11"]

1. e4 {[%clk 0:02:56]}  e6 {[%clk 0:02:57]} 2. d4 {[%clk 0:02:56]}  d5 {[%clk 0:02:58]} 3. Nc3 {[%clk 0:02:56]}  Nf6 {[%clk 0:02:58]} 4. e5 {[%clk 0:02:56]}  Ne4 {[%clk 0:02:59]} 5. Nxe4 {[%clk 0:02:56]}  dxe4 {[%clk 0:02:59]} 6. Bc4 {[%clk 0:02:55]}  a6 {[%clk 0:02:50]} 7. Ne2 {[%clk 0:02:53]}  b5 {[%clk 0:02:49]} 8. Bb3 {[%clk 0:02:53]}  c5 {[%clk 0:02:49]} 9. dxc5 {[%clk 0:02:48]}  Qxd1+ {[%clk 0:02:48]} 10. Kxd1 {[%clk 0:02:49]}  Bxc5 {[%clk 0:02:48]} 11. Ke1 {[%clk 0:02:49]}  Nc6 {[%clk 0:02:44]} 12. Bf4 {[%clk 0:02:48]}  h6 {[%clk 0:02:33]} 13. h4 {[%clk 0:02:45]}  Bb7 {[%clk 0:02:33]} 14. c3 {[%clk 0:02:38]}  O-O-O {[%clk 0:02:30]} 15. Ng3 {[%clk 0:02:37]}  Ne7 {[%clk 0:01:58]} 16. Bc2 {[%clk 0:02:36]}  Ng6 {[%clk 0:01:58]} 17. Ne2 {[%clk 0:02:28]}  Nxf4 {[%clk 0:01:51]} 18. Nxf4 {[%clk 0:02:28]}  g5 {[%clk 0:01:51]} 19. Ne2 {[%clk 0:02:23]}  e3 {[%clk 0:01:45]} 20. f3 {[%clk 0:02:22]}  Rhg8 {[%clk 0:01:31]} 21. h5 {[%clk 0:02:18]}  Rd2 {[%clk 0:01:27]} 22. Rc1 {[%clk 0:02:16]}  g4 {[%clk 0:01:26]} 23. f4 {[%clk 0:01:50]}  Bxg2 {[%clk 0:01:22]} 24. Rh2 {[%clk 0:01:44]}  Bf3 {[%clk 0:01:21]} 25. Bh7 {[%clk 0:01:39]}  Rgd8 {[%clk 0:01:11]} 26. Kf1 {[%clk 0:01:29]} 1-0


[Site "https://www.chess.com"]